fUSD/lending_fUSD_20240325
["ID","MTS","AMOUNT","RATE_DAILY","PERIOD"]
[320359084,1711326635225,-853.76430017,0.00019,2]
[320359085,1711326635235,-853.76430017,0.00019,2]
[320359086,1711326635245,-853.76430017,0.00019,2]
[320359087,1711326635255,-853.76430017,0.00019,2]
[320359088,1711326635265,-853.76430017,0.00019,2]
[320359089,1711326635275,-853.76430017,0.00019,2]
[320359090,1711326635285,-853.76430017,0.00019,2]
[320359091,1711326635296,-853.76430017,0.00019,2]
[320359092,1711326635307,-853.76430017,0.00019,2]
[320359093,1711326635317,-853.76430017,0.00019,2]
[320359094,1711326635328,-853.76430017,0.00019,2]
[320359095,1711326635339,-853.76430017,0.00019,2]
[320359096,1711326635349,-853.76430017,0.00019,2]
[320359097,1711326635359,-853.76430017,0.00019,2]
[320359098,1711326635371,-853.76430017,0.00019,2]
[320359099,1711326635381,-853.76430017,0.00019,2]
[320359100,1711326635391,-853.76430017,0.00019,2]
[320359101,1711326635402,-853.76430017,0.00019,2]
[320359102,1711326635412,-853.76430017,0.00019,2]
[320359103,1711326635424,-853.76430017,0.00019,2]
[320359104,1711326635434,-853.76430017,0.00019,2]
[320359105,1711326635444,-177.59415232,0.00019001,2]
[320359106,1711326635454,-347427.54115847,0.00019011,2]
[320359137,1711326639098,-361.02,0.00017627,2]
[320359138,1711326639108,-1200.53699096,0.00018999,2]
[320359139,1711326639118,-178.12079945,0.00019,2]
[320359146,1711326641054,-160.02149321,0.0001882,2]
[320359147,1711326641064,-960.42959276,0.00018999,2]
[320359148,1711326641073,-675.64350072,0.00019,2]
[320359149,1711326641082,-853.76430017,0.00019,2]
[320359150,1711326641091,-490.64111314,0.00019,2]
[320359151,1711326641103,-363.12318703,0.00019,2]
[320359152,1711326641112,-90.75521297,0.00019,2]
[320359153,1711326641125,-763.0090872,0.00019,2]
[320359154,1711326641134,-87.25025135,0.00019,2]
[320359155,1711326641162,-662.70634916,0.00019,2]
[320359156,1711326642214,-797.42,0.00016223,2]
[320359157,1711326642224,-797.42,0.00018487,2]
[320359158,1711326642233,-103.80769966,0.00019,2]
[320359159,1711326642243,-853.76430017,0.00019,2]
[320359160,1711326642252,-853.76430017,0.00019,2]
[320359161,1711326642263,-853.76430017,0.00019,2]
[320359162,1711326642273,-853.76430017,0.00019,2]
[320359163,1711326642283,-853.76430017,0.00019,2]
[320359164,1711326642293,-853.76430017,0.00019,2]
[320359165,1711326642302,-853.76430017,0.00019,2]
[320359166,1711326642313,-853.76430017,0.00019,2]
[320359167,1711326642323,-646.21122548,0.00019,2]
[320359168,1711326642387,-207.55307469,0.00019,2]
[320359169,1711326642399,-853.76430017,0.00019,2]
[320359170,1711326642409,-853.76430017,0.00019,2]
[320359171,1711326642418,-853.76430017,0.00019,2]
[320359172,1711326642428,-342.08582852,0.00019,2]
[320359187,1711326642631,-511.67847165,0.00019,2]
[320359189,1711326642640,-853.76430017,0.00019,2]
[320359191,1711326642649,-65653.52850452,0.00019011,2]
[320359262,1711326643288,-5818.61446076,0.00019011,2]
[320359300,1711326643627,-2352.94218973,0.00019011,2]
[320359302,1711326643639,-5690.28867189,0.00019011,2]
[320359305,1711326643650,-2551.67743243,0.00019011,2]
[320359307,1711326643663,-2945.62317664,0.00019011,2]
[320359313,1711326643716,-1115.28590621,0.00019011,2]
[320359315,1711326643728,-372.87092868,0.00019011,2]
[320359318,1711326643740,-400.36535376,0.00019011,2]
[320359320,1711326643753,-446.51173508,0.00019011,2]
[320359322,1711326643765,-654.22563592,0.00019011,2]
[320359325,1711326643782,-6648.79999996,0.00019011,2]
[320359327,1711326643794,-12744.4,0.00019011,2]
[320359329,1711326643807,-9411.4019,0.00019011,2]
[320359333,1711326643833,-669.22,0.00019011,2]
[320359385,1711326647211,-420.18794684,0.0001901,2]
[320359386,1711326647224,-1883.04449147,0.00019011,2]
[320359387,1711326647236,-17400.0,0.00019011,2]
[320359388,1711326647295,-702.78384429,0.00019011,2]
[320359389,1711326647344,-6051.12771701,0.00019011,2]
[320359390,1711326655402,151.0,0.00020358,30]
[320359391,1711326655465,151.0,0.00019951,120]
[320359392,1711327140959,151.0,0.00020887,30]
[320359393,1711327141011,151.0,0.00020469,120]
[320359394,1711327276028,220.0,0.000251,120]
[320359396,1711327455967,151.0,0.00020887,30]
[320359397,1711327456051,151.0,0.00020469,120]
[320359410,1711327710798,150.0,0.00025061,120]
[320359430,1711327832345,-426.91479691,0.0001589,2]
[320359432,1711327832355,-165.09636315,0.0001589,2]
[320359434,1711327832365,-233.76256626,0.00015891,2]
[320359435,1711327832411,-193.15223065,0.00015891,2]
[320359436,1711327832422,-426.91479691,0.00015891,2]
[320359437,1711327832433,-334.04479438,0.00015895,2]
[320359438,1711327832445,-337.7557,0.00015895,2]
[320359439,1711327832495,-80.61950562,0.00015895,2]
[320359440,1711327832507,-150.0,0.0001726,2]
[320359441,1711327832517,-150.0,0.0001726,2]
[320359442,1711327832526,-151.725298,0.0001726,2]
[320359443,1711327832536,-150.0,0.0001726,2]
[320359444,1711327832546,-150.0,0.00017781,2]
[320359445,1711327832555,-250.0,0.00017806,2]
[320359446,1711327832565,-250.0,0.00017806,2]
[320359447,1711327832574,-300.08582227,0.00017811,2]
[320359448,1711327832586,-762.28417773,0.00017811,2]
[320359449,1711327832596,-253.68,0.00017813,2]
[320359450,1711327832605,-197.21,0.00017814,2]
[320359451,1711327832615,-1000.0,0.0001783,2]
[320359452,1711327832625,-5000.0,0.00018099,2]
[320359453,1711327832634,-3121.083414,0.000181,2]
[320359454,1711327832643,-752.42,0.00018159,2]
[320359455,1711327832652,-162.82054175,0.00018552,2]
[320359456,1711327832662,-155.74542242,0.00018593,2]
[320359457,1711327832671,-152.49935685,0.000186,2]
[320359458,1711327832682,-853.0,0.000186,2]
[320359459,1711327832691,-162.82054175,0.00018646,2]
[320359460,1711327832700,-151.2474727,0.00018668,2]
[320359461,1711327832709,-496.63211159,0.00018686,2]
[320359462,1711327832719,-132.15696121,0.000187,2]
[320359463,1711327832791,-812.31537004,0.000187,2]
[320359491,1711327838339,-55.52766875,0.000187,2]
[320359492,1711327838349,-1000.0,0.000187,2]
[320359493,1711327838360,-162.82054175,0.00018739,2]
[320359494,1711327838369,-155.74542242,0.00018744,2]
[320359495,1711327838379,-4562.10636708,0.00018746,2]
[320359496,1711327838425,-1342.85754172,0.00018746,2]
[320359497,1711327838437,-3009.551005,0.00018746,2]
[320359498,1711327838448,-475.57638095,0.00018746,2]
[320359499,1711327838460,-703.42764,0.00018746,2]
[320359500,1711327838472,-719.55066525,0.00018746,2]
[320359501,1711327838481,-155.74542242,0.00018791,2]
[320359502,1711327838490,-596.92889455,0.00018799,2]
[320359503,1711327838499,-200.0,0.00018812,2]
[320359504,1711327838508,-160.02149321,0.0001882,2]
[320359505,1711327838518,-155.74542242,0.00018835,2]
[320359506,1711327838527,-155.74542242,0.00018852,2]
[320359507,1711327838536,-200.0,0.00018854,2]
[320359508,1711327838546,-800.0,0.00018854,2]
[320359509,1711327838555,-500.0,0.00018854,2]
[320359510,1711327838565,-200.0,0.00018854,2]
[320359511,1711327838575,-162.82054175,0.00018855,2]
[320359512,1711327838585,-89.8116475,0.00018858,2]
[320359513,1711327838612,-110.1883525,0.00018858,2]
[320359514,1711327838622,-800.0,0.00018858,2]
[320359515,1711327838631,-540.434,0.000189,2]
[320359516,1711327838641,-1018.0,0.000189,2]
[320359517,1711327838650,-596.92889455,0.00018901,2]
[320359518,1711327838660,-167.46263275,0.00018901,2]
[320359519,1711327838670,-673.9927,0.00018903,2]
[320359520,1711327838679,-29190.3198,0.00018905,2]
[320359521,1711327838689,-1165.89163453,0.0001891,2]
[320359522,1711327838699,-167.46263267,0.0001891,2]
[320359523,1711327838710,-8734.1381,0.00018911,2]
[320359524,1711327838720,-30150.07178117,0.00018911,2]
[320359525,1711327838756,-3804.15434137,0.00018911,2]
[320359526,1711327838769,-308.46,0.00018911,2]
[320359527,1711327838783,-1065.9121412,0.00018911,2]
[320359528,1711327838796,-853.41649075,0.00018911,2]
[320359530,1711327838811,-305.18298293,0.00018911,2]
[320359534,1711327838844,-788.89410348,0.00018911,2]
[320359544,1711327840361,-250.0,0.00017932,2]
[320359545,1711327840370,-146.0,0.00018911,2]
[320359546,1711327840382,-10741.21653731,0.00018911,2]
[320359547,1711327840393,-7085.95688103,0.00018911,2]
[320359548,1711327840404,-1533.18134076,0.00018911,2]
[320359549,1711327840414,-416.10403924,0.00018911,2]
[320359550,1711327840446,-83.89596076,0.00018911,2]
[320359551,1711327840458,-2454.96420925,0.00018911,2]
[320359552,1711327840467,-2811.88839313,0.00018913,2]
[320359553,1711327840477,-167.46263267,0.0001892,2]
[320359554,1711327840487,-151.06956234,0.00018923,2]
[320359555,1711327840502,-155.74542242,0.00018924,2]
[320359556,1711327840513,-167.46263267,0.00018929,2]
[320359557,1711327840522,-167.46263267,0.00018938,2]
[320359558,1711327840531,-151.2474727,0.00018943,2]
[320359559,1711327840541,-167.46263267,0.00018948,2]
[320359560,1711327840550,-167.46263267,0.00018957,2]
[320359561,1711327840559,-151.032508,0.00018998,3]
[320359562,1711327840569,-151.032508,0.00018998,3]
[320359563,1711327840578,-151.032508,0.00018998,3]
[320359564,1711327840587,-151.032508,0.00018998,3]
[320359565,1711327840597,-151.032508,0.00018998,3]
[320359566,1711327840606,-151.032508,0.00018998,2]
[320359567,1711327840615,-152.12374797,0.00018999,2]
[320359568,1711327840624,-500.0,0.00018999,2]
[320359569,1711327840633,-296.92163089,0.00019,2]
[320359570,1711327840643,-1250.0,0.00019,3]
[320359571,1711327840651,-1250.0,0.00019,3]
[320359572,1711327840661,-479.0,0.00019,2]
[320359573,1711327840670,-177.59415233,0.00019,2]
[320359574,1711327840680,-5835.112512,0.00019001,2]
[320359575,1711327840689,-41093.13105486,0.00019001,2]
[320359576,1711327840701,-276.93,0.00019001,2]
[320359577,1711327840715,-634.968,0.00019001,2]
[320359578,1711327842358,-1035.80257066,0.00019001,2]
[320359579,1711327842457,-6001.09210075,0.00019001,2]
[320359580,1711327842469,-7017.00999995,0.00019001,2]
[320359581,1711327842557,-1356.59500069,0.00019001,2]
[320359582,1711327842580,-13123.5538,0.00019001,2]
[320359583,1711327842592,-897.11030597,0.00019001,2]
[320359584,1711327842635,-821.62087964,0.00019001,2]
[320359585,1711327842647,-1435.55415823,0.00019001,2]
[320359603,1711327843646,-250.0,0.00018037,2]
[320359604,1711327843656,-1837.23038681,0.00019001,2]
[320359605,1711327843689,-4247.19630904,0.00019001,2]
[320359606,1711327843712,-3738.61947612,0.00019001,2]
[320359607,1711327843724,-4220.89484467,0.00019001,2]
[320359608,1711327843736,-2965.92385487,0.00019001,2]
[320359609,1711327843747,-20931.397,0.00019001,2]
[320359610,1711327844223,-824.70230785,0.00019001,2]
[320359619,1711327846504,-167.46263267,0.00018966,2]
[320359620,1711327846516,-196.64233997,0.00019,2]
[320359621,1711327846526,-619.34902736,0.00019,2]
[320359622,1711327846551,-4380.65097264,0.00019,2]
[320359623,1711327846562,-40535.89504119,0.00019001,2]
[320359624,1711327846571,-20619.512304,0.00019001,2]
[320359625,1711327846581,-1944.7152149,0.00019001,2]
[320359626,1711327846591,-9993.3040145,0.00019001,2]
[320359627,1711327846600,-219.520177,0.00019008,2]
[320359628,1711327846610,-217.86603582,0.00019009,2]
[320359629,1711327846619,-315.14096013,0.0001901,2]
[320359630,1711327846629,-179.20954953,0.0001901,2]
[320359631,1711327846638,-782997.40946077,0.0001901,2]
[320359632,1711327846648,-711729.02779566,0.00019011,2]
[320359633,1711327846661,-627.3950469,0.00019011,2]
[320359634,1711327846692,-1348.21960522,0.00019011,2]
[320359635,1711327846713,-1750.00000001,0.00019011,2]
[320359636,1711327846725,-681.30510916,0.00019011,2]
[320359637,1711327846737,-857.51709642,0.00019011,2]
[320359640,1711327905060,151.0,0.00020887,30]
[320359641,1711327905117,151.0,0.00020469,120]
[320359642,1711327950866,150.0,0.00024663,120]
[320359643,1711328069799,468.68441818,0.00015,2]
[320359644,1711328078013,1456.38147241,0.00022,120]
[320359645,1711328222677,151.0,0.00020887,30]
[320359646,1711328222737,151.0,0.00020469,120]
[320359647,1711328251284,150.0,0.00024778,120]
[320359648,1711328475797,600.0,0.00017,18]
[320359649,1711328487194,10000.0,0.0002477,30]
[320359650,1711328494747,1200.0,0.00017,3]
[320359651,1711328518014,1200.0,0.000251,120]
[320359652,1711328535930,694.01,0.00014476,2]
[320359653,1711328562446,935.9954298,0.00023,60]
[320359654,1711328637692,10000.0,0.0002477,60]
[320359655,1711328825272,151.0,0.00020008,30]
[320359656,1711328825311,151.0,0.00019608,120]
[320359658,1711328999739,659.3,0.00014056,2]
[320359659,1711329002960,200.0,0.00012307,2]
[320359662,1711329031555,-426.91479691,0.00015299,2]
[320359663,1711329031564,-2977.28553008,0.00015299,2]
[320359664,1711329031574,-290.05265096,0.000153,2]
[320359665,1711329031583,-1670.85239999,0.000154,2]
[320359666,1711329031593,-677.05,0.00015882,2]
[320359667,1711329031603,-200.0,0.00015893,2]
[320359668,1711329031613,-150.0,0.00015897,2]
[320359669,1711329031622,-250.0,0.00015898,2]
[320359670,1711329031631,-200.0,0.00015898,2]
[320359671,1711329031640,-1190.45712895,0.00015898,2]
[320359672,1711329031653,-684.71908266,0.00015898,2]
[320359673,1711329031779,-450.0,0.00015898,2]
[320359674,1711329031798,-970.83378839,0.00015898,2]
[320359675,1711329031807,-200.0,0.00015959,2]
[320359676,1711329031817,-114.16621161,0.00015983,2]
[320359677,1711329031829,-1790.31378839,0.00015983,2]
[320359678,1711329031838,-250.0,0.00015985,2]
[320359679,1711329031852,-359.12424675,0.00015992,2]
[320359680,1711329031864,-368.36047548,0.00015992,2]
[320359681,1711329031994,-344.89527777,0.00015992,2]
[320359682,1711329032004,-1643.76,0.00016225,2]
[320359683,1711329032013,-155.0,0.00016253,2]
[320359684,1711329032023,-1172.99149597,0.00016254,2]
[320359686,1711329032039,-6662.56756798,0.00016254,2]
[320359726,1711329037562,-515.29338044,0.00016254,2]
[320359729,1711329037574,-5719.72755561,0.00016254,2]
[320359731,1711329037583,-484.91,0.00016311,2]
[320359733,1711329037592,-659.3,0.0001632,2]
[320359735,1711329037601,-500.0,0.00016337,2]
[320359737,1711329037611,-500.0,0.00016366,2]
[320359739,1711329037620,-150.99,0.00016366,2]
[320359741,1711329037630,-1842.66,0.00016371,2]
[320359743,1711329037639,-1992.43,0.00016411,2]
[320359744,1711329037648,-250.0,0.00016438,2]
[320359747,1711329037659,-152.51,0.00016499,2]
[320359749,1711329037668,-800.0,0.00016514,2]
[320359751,1711329037677,-152.51,0.00016557,2]
[320359753,1711329037687,-152.51,0.00016614,2]
[320359755,1711329037696,-152.51,0.00016671,2]
[320359757,1711329037705,-152.51,0.00016729,2]
[320359759,1711329037714,-152.51,0.00016786,2]
[320359761,1711329037723,-152.51,0.00016843,2]
[320359763,1711329037733,-152.51,0.00016901,2]
[320359765,1711329037742,-152.51,0.00016958,2]
[320359767,1711329037752,-152.51,0.00017015,2]
[320359769,1711329037761,-152.51,0.00017073,2]
[320359771,1711329037771,-152.51,0.0001713,2]
[320359773,1711329037780,-152.51,0.00017187,2]
[320359775,1711329037789,-152.51,0.00017245,2]
[320359777,1711329037799,-200.0,0.00017296,2]
[320359779,1711329037810,-152.51,0.00017302,2]
[320359781,1711329037819,-499.99,0.00017335,2]
[320359783,1711329037828,-152.51,0.00017359,2]
[320359785,1711329037837,-175.32,0.00017437,2]
[320359787,1711329037846,-152.9,0.00017479,2]
[320359790,1711329037856,-1400.0,0.000176,6]
[320359792,1711329037865,-1589.14473661,0.000177,6]
[320359794,1711329037878,-1310.85526339,0.000177,6]
[320359796,1711329037888,-651.8383,0.000178,2]
[320359798,1711329037897,-84.75292495,0.000178,6]
[320359801,1711329037913,-1289.03509443,0.000178,6]
[320359811,1711329037978,-724.66321684,0.000178,6]
[320359813,1711329037989,-2301.54876378,0.000178,6]
[320359815,1711329037999,-200.0,0.0001788,2]
[320359817,1711329038009,-278.19355716,0.00017899,2]
[320359819,1711329038018,-871.95838783,0.00017899,5]
[320359821,1711329038028,-45735.06353864,0.000179,2]
[320359823,1711329038041,-3195.23258283,0.000179,2]
[320359825,1711329038052,-1018.0311035,0.000179,2]
[320359828,1711329038065,-692.79472096,0.000179,2]
[320359830,1711329038076,-1425.94447234,0.000179,2]
[320359832,1711329038087,-1220.20775906,0.000179,2]
[320359834,1711329038098,-406.46916604,0.000179,2]
[320359837,1711329038110,-3057.71893519,0.000179,2]
[320359842,1711329038151,-286.98045318,0.000179,2]
[320359845,1711329038162,-14865.36262399,0.000179,2]
[320359851,1711329038206,-469.63768121,0.000179,2]
[320359857,1711329038250,-275.96458678,0.000179,2]
[320359859,1711329038261,-1754.70331355,0.000179,2]
[320359861,1711329038274,-369.93113102,0.000179,2]
[320359884,1711329039601,-2018.55080121,0.000179,2]
[320359901,1711329039838,-452.68017388,0.000179,2]
[320359902,1711329039907,-1153.5,0.000179,2]
[320359903,1711329039920,-1191.88699385,0.000179,2]
[320359904,1711329039960,-665.89361106,0.000179,2]
[320359905,1711329039977,-291.72,0.000179,2]
[320359906,1711329039988,-3527.67524702,0.000179,2]
[320359907,1711329040004,-1186.09611622,0.000179,2]
[320359916,1711329042649,-6156.83501512,0.000179,2]
[320359917,1711329042661,-1507.85132599,0.000179,2]
[320359918,1711329042705,-13204.39774671,0.000179,2]
[320359919,1711329042719,-22458.51944016,0.000179,2]
[320359920,1711329042762,-3098.35923569,0.000179,2]
[320359921,1711329042773,-37210.45618032,0.000179,2]
[320359934,1711329045751,-399.3,0.00017637,2]
[320359935,1711329045766,-425.866066,0.0001781,2]
[320359936,1711329045780,-24102.45401885,0.000179,2]
[320359937,1711329045824,-2152.30832563,0.000179,2]
[320359938,1711329045833,-7694.48499086,0.000179,2]
[320359939,1711329045842,-221.93328683,0.000179,2]
[320359940,1711329045852,-1144.60275282,0.000179,2]
[320359941,1711329045861,-221.93328665,0.000179,2]
[320359942,1711329045871,-221.93328665,0.000179,2]
[320359943,1711329045881,-221.93328665,0.000179,2]
[320359944,1711329045890,-221.93328665,0.000179,2]
[320359945,1711329045899,-221.93328665,0.000179,2]
[320359946,1711329045908,-221.93328665,0.000179,2]
[320359947,1711329045918,-221.93328665,0.000179,2]
[320359948,1711329045927,-221.93328665,0.000179,2]
[320359949,1711329045937,-221.93328665,0.000179,2]
[320359950,1711329045946,-221.93328665,0.000179,2]
[320359951,1711329045956,-221.93328665,0.000179,2]
[320359952,1711329045965,-5900.0,0.000179,6]
[320359953,1711329046418,-221.93328665,0.000179,2]
[320359954,1711329046444,-221.93328665,0.000179,2]
[320359955,1711329046474,-221.93328665,0.000179,2]
[320359956,1711329046484,-221.93328665,0.000179,2]
[320359957,1711329046493,-221.93328665,0.000179,2]
[320359958,1711329046502,-221.93328665,0.000179,2]
[320359959,1711329046512,-221.93328665,0.000179,2]
[320359960,1711329046521,-221.93328665,0.000179,2]
[320359961,1711329046530,-629.17520325,0.000179,2]
[320359962,1711329046540,-430.11190388,0.000179,2]
[320359963,1711329046549,-172.360608,0.0001799,2]
[320359964,1711329046558,-151.032509,0.00017998,2]
[320359965,1711329046570,-151.032509,0.00017998,2]
[320359966,1711329046579,-151.032509,0.00017998,2]
[320359967,1711329046589,-151.032509,0.00017998,3]
[320359968,1711329046598,-151.032509,0.00017998,3]
[320359969,1711329046607,-151.032509,0.00017998,3]
[320359970,1711329046616,-151.032509,0.00017998,3]
[320359971,1711329046625,-151.032509,0.00017998,3]
[320359972,1711329046635,-250.32652607,0.00017999,2]
[320359973,1711329046644,-142279.26599676,0.00018,2]
[320359974,1711329298565,151.0,0.00019886,30]
[320359975,1711329298625,151.0,0.00019488,120]
[320359976,1711329341201,800.82641882,0.00015,2]
[320359977,1711329510276,614.65,0.00014727,2]
[320359978,1711329540582,151.0,0.00020068,30]
[320359979,1711329540633,151.0,0.00019666,120]
[320359981,1711329870334,151.0,0.0002026,30]
[320359982,1711329870396,151.0,0.00019855,120]
[320359983,1711329953675,583.91,0.00014282,2]
[320359984,1711330010166,200000.0,0.000251,120]
[320359999,1711330210177,334.46,0.00024766,30]
[320360000,1711330216299,151.0,0.00020452,30]
[320360001,1711330219250,151.0,0.00020042,120]
[320360007,1711330231738,-155.0,0.00015197,2]
[320360008,1711330231748,-198.0,0.00015198,2]
[320360009,1711330231758,-337.95,0.00016002,2]
[320360010,1711330231767,-150.0,0.0001602,2]
[320360011,1711330231775,-1273.93281966,0.00016121,2]
[320360012,1711330231787,-1728.81458034,0.00016121,2]
[320360013,1711330231796,-23723.32,0.00016176,2]
[320360014,1711330231805,-10000.0,0.00016184,2]
[320360015,1711330231814,-200.0,0.00016192,2]
[320360016,1711330231823,-3575.2,0.00016214,2]
[320360017,1711330231832,-1752.33,0.00016221,2]
[320360018,1711330231841,-196.53,0.00016246,2]
[320360019,1711330231851,-150.0,0.0001633,2]
[320360020,1711330231861,-243.74,0.00016337,2]
[320360021,1711330231870,-154.15,0.00016342,2]
[320360022,1711330231880,-499.99,0.00016349,2]
[320360023,1711330231889,-150.99,0.00016349,2]
[320360024,1711330231898,-250.0,0.00016387,2]
[320360025,1711330231908,-250.0,0.00016438,2]
[320360026,1711330231917,-154.15,0.00016463,2]
[320360027,1711330231926,-162.26017123,0.00016471,2]
[320360028,1711330231936,-583.91,0.00016546,2]
[320360029,1711330231945,-154.15,0.00016585,2]
[320360030,1711330231954,-200.0,0.00016634,2]
[320360031,1711330231963,-250.0,0.00016645,2]
[320360032,1711330231972,-500.0,0.00016645,2]
[320360033,1711330231981,-154.15,0.00016707,2]
[320360034,1711330231991,-162.26017121,0.00016757,2]
[320360035,1711330232000,-26931.99392059,0.00016772,2]
[320360036,1711330232028,-2733.68,0.00016772,2]
[320360037,1711330232043,-467.15976627,0.00016772,2]
[320360038,1711330232055,-301.44505381,0.00016772,2]
[320360039,1711330232066,-521.22710195,0.00016772,2]
[320360040,1711330232099,-5531.67089629,0.00016772,2]
[320360041,1711330232134,-73.01844769,0.00016772,2]
[320360042,1711330232144,-417.99943909,0.00016782,2]
[320360043,1711330232155,-272.72700117,0.00016782,2]
[320360044,1711330232167,-1400.72355974,0.00016782,2]
[320360045,1711330232176,-83.91351592,0.00016811,2]
[320360046,1711330232205,-250.0,0.00016811,2]
[320360047,1711330232223,-546.08648408,0.00016811,2]
[320360048,1711330232232,-154.15,0.00016828,2]
[320360049,1711330232242,-228.30038763,0.00016845,2]
[320360071,1711330237734,-9.65961237,0.00016845,2]
[320360073,1711330237744,-173.03,0.0001688,2]
[320360076,1711330237755,-154.15,0.0001695,2]
[320360079,1711330237766,-25.35015814,0.00016989,2]
[320360095,1711330237904,-5420.93984186,0.00016989,2]
[320360097,1711330237914,-162.26017121,0.00017043,2]
[320360099,1711330237923,-154.15,0.00017072,2]
[320360101,1711330237933,-154.15,0.00017193,2]
[320360103,1711330237942,-162.26017121,0.00017328,2]
[320360105,1711330237952,-164.86,0.0001746,2]
[320360107,1711330237961,-164.86,0.0001753,2]
[320360109,1711330237970,-800.0,0.000176,6]
[320360111,1711330237979,-164.86,0.000176,2]
[320360113,1711330237988,-162.26017121,0.00017614,2]
[320360115,1711330237997,-164.86,0.0001767,2]
[320360118,1711330238007,-480.36246055,0.000177,6]
[320360129,1711330238105,-709.93442292,0.000177,6]
[320360132,1711330238127,-509.70311653,0.000177,6]
[320360134,1711330238136,-164.86,0.0001774,2]
[320360136,1711330238148,-1026.22158242,0.000178,2]
[320360138,1711330238157,-2600.0,0.000178,6]
[320360140,1711330238166,-164.86,0.0001781,2]
[320360142,1711330238175,-3000.0,0.0001782,2]
[320360144,1711330238186,-257.53679742,0.000179,2]
[320360146,1711330238195,-469.2421,0.000179,2]
[320360148,1711330238205,-162.26017121,0.000179,2]
[320360150,1711330238214,-381.714042,0.000179,6]
[320360153,1711330238226,-3018.285958,0.000179,6]
[320360156,1711330238235,-2291.29992868,0.000179,2]
[320360159,1711330238245,-7353.81542271,0.000179,2]
[320360160,1711330238254,-27060.30994346,0.000179,2]
[320360165,1711330238288,-9693.83,0.000179,2]
[320360167,1711330238300,-359.30941116,0.000179,2]
[320360252,1711330240822,-2149.26909016,0.000179,2]
[320360253,1711330241590,-695.68432793,0.000179,2]
[320360254,1711330241806,-1656.59488493,0.000179,2]
[320360255,1711330241824,-8521.60323804,0.000179,2]
[320360259,1711330242965,-1118.13999983,0.000179,2]
[320360260,1711330243065,-42598.08821827,0.000179,2]
[320360261,1711330243084,-470.90830768,0.000179,2]
[320360262,1711330243106,-6310.62052079,0.000179,2]
[320360263,1711330243133,-802.03579506,0.000179,2]
[320360264,1711330243153,-814.20400143,0.000179,2]
[320360265,1711330243171,-576.29772032,0.000179,2]
[320360266,1711330243189,-6337.11177886,0.000179,2]
[320360267,1711330243237,-1934.89427483,0.000179,2]
[320360268,1711330243255,-602.27134979,0.000179,2]
[320360269,1711330243274,-2475.76618449,0.000179,2]
[320360270,1711330243291,-10954.4632505,0.000179,2]
[320360271,1711330243308,-347.47550612,0.000179,2]
[320360272,1711330243328,-1043.68807452,0.000179,2]
[320360273,1711330243352,-1716.05999985,0.000179,2]
[320360274,1711330243369,-1008.17865839,0.000179,2]
[320360275,1711330243467,-355.00576016,0.000179,2]
[320360276,1711330246068,-8502.6193022,0.000179,2]
[320360336,1711330425523,9352.30924169,0.000251,120]
[320360337,1711330426945,550.43,0.00014859,2]
[320360338,1711330462811,182.7137895,0.00024764,60]
[320360340,1711330816819,151.0,0.00020917,30]
[320360341,1711330816872,151.0,0.00020499,120]
[320360342,1711330991685,522.9,0.00013925,2]
[320360343,1711331128120,440.724737,0.00024767,30]
[320360344,1711331139179,151.0,0.00021043,30]
[320360345,1711331139228,151.0,0.00020622,120]
[320360365,1711331431951,-2956.22921722,0.00015625,2]
[320360366,1711331431966,-108.75884481,0.00015625,2]
[320360367,1711331431982,-512.38,0.00015626,2]